[Event "Titled Tuesday Blitz March 28 Early 2023"]
[White "De Silva, L M S T"]
[Black "Deng, Henry"]
[WhiteFideId "9953698"]
[BlackFideId "30965454"]
[WhiteElo "2403"]
[BlackElo "2462"]
[Result "1-0"]
[Round "05"]
[TimeControl "180+2"]
[Date "2023.03.28"]
[WhiteClock "0:00:27"]
[BlackClock "0:00:08"]

1. e4 {[%clk 0:02:56]}  c5 {[%clk 0:02:53]} 2. Nf3 {[%clk 0:02:54]}  e6 {[%clk 0:02:52]} 3. d4 {[%clk 0:02:54]}  cxd4 {[%clk 0:02:53]} 4. Nxd4 {[%clk 0:02:55]}  Nf6 {[%clk 0:02:54]} 5. Nc3 {[%clk 0:02:55]}  Nc6 {[%clk 0:02:54]} 6. Be2 {[%clk 0:02:56]}  Bb4 {[%clk 0:02:53]} 7. O-O {[%clk 0:02:51]}  Bxc3 {[%clk 0:02:52]} 8. bxc3 {[%clk 0:02:50]}  Nxe4 {[%clk 0:02:53]} 9. Bd3 {[%clk 0:02:49]}  d5 {[%clk 0:02:51]} 10. Nxc6 {[%clk 0:02:49]}  bxc6 {[%clk 0:02:52]} 11. Ba3 {[%clk 0:02:49]}  f6 {[%clk 0:02:44]} 12. Qg4 {[%clk 0:02:42]}  Kf7 {[%clk 0:02:37]} 13. Bxe4 {[%clk 0:02:35]}  dxe4 {[%clk 0:02:37]} 14. Qxe4 {[%clk 0:02:34]}  Qd5 {[%clk 0:02:37]} 15. Qb4 {[%clk 0:02:32]}  c5 {[%clk 0:02:31]} 16. Qa5 {[%clk 0:02:32]}  Bb7 {[%clk 0:02:23]} 17. Qc7+ {[%clk 0:02:29]}  Kg6 {[%clk 0:02:23]} 18. f3 {[%clk 0:02:30]}  Rhc8 {[%clk 0:02:21]} 19. Qg3+ {[%clk 0:02:27]}  Kf7 {[%clk 0:02:20]} 20. Rad1 {[%clk 0:02:28]}  Qc6 {[%clk 0:02:14]} 21. Rd6 {[%clk 0:02:26]}  Qc7 {[%clk 0:02:13]} 22. Rfd1 {[%clk 0:02:25]}  Kg8 {[%clk 0:01:56]} 23. c4 {[%clk 0:02:07]}  Rab8 {[%clk 0:01:17]} 24. Bc1 {[%clk 0:01:52]}  Bc6 {[%clk 0:01:14]} 25. Bf4 {[%clk 0:01:50]}  e5 {[%clk 0:01:13]} 26. Bh6 {[%clk 0:01:43]}  Qf7 {[%clk 0:01:08]} 27. f4 {[%clk 0:01:36]}  Kh8 {[%clk 0:01:06]} 28. fxe5 {[%clk 0:01:37]}  gxh6 {[%clk 0:01:04]} 29. e6 {[%clk 0:01:32]}  Qe7 {[%clk 0:01:01]} 30. Rxc6 {[%clk 0:01:31]}  Rg8 {[%clk 0:00:54]} 31. Rd7 {[%clk 0:01:20]}  Qe8 {[%clk 0:00:43]} 32. Rcc7 {[%clk 0:01:06]}  Rxg3 {[%clk 0:00:33]} 33. Rxh7+ {[%clk 0:01:06]}  Kg8 {[%clk 0:00:34]} 34. hxg3 {[%clk 0:01:07]}  Qxe6 {[%clk 0:00:32]} 35. Rcg7+ {[%clk 0:01:08]}  Kf8 {[%clk 0:00:33]} 36. Rxa7 {[%clk 0:01:08]}  Qg8 {[%clk 0:00:28]} 37. Kh2 {[%clk 0:01:03]}  Re8 {[%clk 0:00:19]} 38. a4 {[%clk 0:00:56]}  f5 {[%clk 0:00:17]} 39. Rxh6 {[%clk 0:00:49]}  Rb8 {[%clk 0:00:12]} 40. Rhh7 {[%clk 0:00:44]}  Ke8 {[%clk 0:00:12]} 41. a5 {[%clk 0:00:38]}  Kd8 {[%clk 0:00:12]} 42. a6 {[%clk 0:00:37]}  Qe8 {[%clk 0:00:12]} 43. Rag7 {[%clk 0:00:27]}  Ra8 {[%clk 0:00:08]} 44. a7 {[%clk 0:00:27]} 1-0


[Site "https://www.chess.com"]

[Event "Titled Tuesday Blitz March 28 Early 2023"]
[White "Aaditya Dhingra"]
[Black "Manukyan, Artyom"]
[WhiteFideId "25678191"]
[BlackFideId "13305786"]
[WhiteElo "2083"]
[BlackElo "2078"]
[Result "1-0"]
[Round "05"]
[TimeControl "180+2"]
[Date "2023.03.28"]
[WhiteClock "0:01:14"]
[BlackClock "0:01:34"]

1. c4 {[%clk 0:03:00]}  e6 {[%clk 0:03:00]} 2. Nf3 {[%clk 0:02:58]}  f5 {[%clk 0:03:00]} 3. g3 {[%clk 0:02:55]}  Nf6 {[%clk 0:03:00]} 4. Bg2 {[%clk 0:02:56]}  d5 {[%clk 0:03:00]} 5. O-O {[%clk 0:02:56]}  c6 {[%clk 0:03:01]} 6. b3 {[%clk 0:02:55]}  Bd6 {[%clk 0:03:01]} 7. d4 {[%clk 0:02:54]}  Qe7 {[%clk 0:03:00]} 8. Bf4 {[%clk 0:02:54]}  O-O {[%clk 0:02:59]} 9. Bxd6 {[%clk 0:02:53]}  Qxd6 {[%clk 0:03:00]} 10. Nc3 {[%clk 0:02:54]}  Ne4 {[%clk 0:03:00]} 11. Rc1 {[%clk 0:02:51]}  Bd7 {[%clk 0:02:56]} 12. e3 {[%clk 0:02:46]}  Be8 {[%clk 0:02:54]} 13. Ne2 {[%clk 0:02:47]}  Nd7 {[%clk 0:02:52]} 14. Nf4 {[%clk 0:02:46]}  Ndf6 {[%clk 0:02:51]} 15. Ne5 {[%clk 0:02:45]}  g5 {[%clk 0:02:50]} 16. Nfd3 {[%clk 0:02:44]}  h5 {[%clk 0:02:48]} 17. f3 {[%clk 0:02:43]}  a5 {[%clk 0:02:38]} 18. fxe4 {[%clk 0:02:41]}  dxe4 {[%clk 0:02:39]} 19. Nb2 {[%clk 0:02:32]}  Kg7 {[%clk 0:02:32]} 20. Na4 {[%clk 0:02:27]}  Rh8 {[%clk 0:02:30]} 21. Nb6 {[%clk 0:02:25]}  Rd8 {[%clk 0:02:29]} 22. c5 {[%clk 0:02:20]}  Qc7 {[%clk 0:02:28]} 23. h3 {[%clk 0:02:17]}  Kg8 {[%clk 0:02:06]} 24. Qe2 {[%clk 0:02:12]}  Qh7 {[%clk 0:02:04]} 25. a3 {[%clk 0:02:01]}  Bg6 {[%clk 0:01:51]} 26. b4 {[%clk 0:01:56]}  a4 {[%clk 0:01:46]} 27. b5 {[%clk 0:01:55]}  h4 {[%clk 0:01:42]} 28. g4 {[%clk 0:01:54]}  Kg7 {[%clk 0:01:35]} 29. bxc6 {[%clk 0:01:52]}  bxc6 {[%clk 0:01:36]} 30. Nxc6 {[%clk 0:01:49]}  fxg4 {[%clk 0:01:36]} 31. Nxd8 {[%clk 0:01:47]}  Rxd8 {[%clk 0:01:37]} 32. c6 {[%clk 0:01:46]}  gxh3 {[%clk 0:01:36]} 33. Bxh3 {[%clk 0:01:32]}  g4 {[%clk 0:01:35]} 34. c7 {[%clk 0:01:32]}  Rh8 {[%clk 0:01:34]} 35. c8=Q {[%clk 0:01:31]}  Rxc8 {[%clk 0:01:34]} 36. Rxc8 {[%clk 0:01:30]}  gxh3 {[%clk 0:01:35]} 37. Rc7+ {[%clk 0:01:30]}  Bf7 {[%clk 0:01:36]} 38. Qg4+ {[%clk 0:01:15]}  Nxg4 {[%clk 0:01:34]} 39. Rfxf7+ {[%clk 0:01:14]} 1-0


[Site "https://www.chess.com"]

[Event "Titled Tuesday Blitz March 28 Early 2023"]
[White "Sowul, Bartosz"]
[Black "Vaibhav Jayant Raut"]
[WhiteFideId "1137590"]
[BlackFideId "5089034"]
[WhiteElo "2188"]
[BlackElo "2156"]
[Result "0-1"]
[Round "05"]
[TimeControl "180+2"]
[Date "2023.03.28"]
[WhiteClock "0:01:50"]
[BlackClock "0:02:19"]

1. e4 {[%clk 0:03:00]}  c5 {[%clk 0:02:57]} 2. Nc3 {[%clk 0:03:01]}  Nc6 {[%clk 0:02:57]} 3. Bb5 {[%clk 0:03:01]}  g6 {[%clk 0:02:57]} 4. Bxc6 {[%clk 0:03:00]}  dxc6 {[%clk 0:02:58]} 5. f4 {[%clk 0:03:00]}  Bg7 {[%clk 0:02:58]} 6. Nf3 {[%clk 0:03:00]}  Bg4 {[%clk 0:02:56]} 7. h3 {[%clk 0:03:00]}  Bxf3 {[%clk 0:02:53]} 8. Qxf3 {[%clk 0:03:01]}  Nf6 {[%clk 0:02:52]} 9. d3 {[%clk 0:02:49]}  c4 {[%clk 0:02:47]} 10. e5 {[%clk 0:02:19]}  Nd5 {[%clk 0:02:34]} 11. dxc4 {[%clk 0:02:15]}  Nxc3 {[%clk 0:02:32]} 12. Qxc3 {[%clk 0:02:16]}  O-O {[%clk 0:02:33]} 13. Be3 {[%clk 0:02:13]}  f6 {[%clk 0:02:31]} 14. O-O {[%clk 0:01:58]}  fxe5 {[%clk 0:02:28]} 15. fxe5 {[%clk 0:01:59]}  Qc7 {[%clk 0:02:29]} 16. Bf4 {[%clk 0:01:50]}  Rxf4 {[%clk 0:02:19]} 0-1


[Site "https://www.chess.com"]

[Event "Titled Tuesday Blitz March 28 Early 2023"]
[White "Estremera Panos, Sergio"]
[Black "Gontcharov, Vladislav"]
[WhiteFideId "2200864"]
[BlackFideId "4123492"]
[WhiteElo "2253"]
[BlackElo "2470"]
[Result "0-1"]
[Round "05"]
[TimeControl "180+2"]
[Date "2023.03.28"]
[WhiteClock "0:00:19"]
[BlackClock "0:00:18"]

1. d4 {[%clk 0:03:00]}  Nf6 {[%clk 0:02:59]} 2. c4 {[%clk 0:03:01]}  c5 {[%clk 0:02:58]} 3. d5 {[%clk 0:03:01]}  e6 {[%clk 0:02:59]} 4. Nc3 {[%clk 0:03:01]}  exd5 {[%clk 0:02:59]} 5. cxd5 {[%clk 0:03:02]}  d6 {[%clk 0:02:59]} 6. Nf3 {[%clk 0:03:02]}  g6 {[%clk 0:02:59]} 7. Nd2 {[%clk 0:03:03]}  Nbd7 {[%clk 0:02:59]} 8. e4 {[%clk 0:03:03]}  Bg7 {[%clk 0:02:59]} 9. Be2 {[%clk 0:03:03]}  O-O {[%clk 0:02:59]} 10. O-O {[%clk 0:03:03]}  Re8 {[%clk 0:02:59]} 11. h3 {[%clk 0:03:02]}  a6 {[%clk 0:02:49]} 12. a4 {[%clk 0:03:02]}  Rb8 {[%clk 0:02:49]} 13. Qc2 {[%clk 0:03:00]}  Qc7 {[%clk 0:02:47]} 14. a5 {[%clk 0:02:57]}  b5 {[%clk 0:02:43]} 15. axb6 {[%clk 0:02:57]}  Rxb6 {[%clk 0:02:40]} 16. Nc4 {[%clk 0:02:57]}  Rb4 {[%clk 0:02:40]} 17. Bf4 {[%clk 0:02:56]}  Bf8 {[%clk 0:02:25]} 18. Rfe1 {[%clk 0:02:48]}  Nb6 {[%clk 0:02:01]} 19. Nd2 {[%clk 0:02:40]}  Bd7 {[%clk 0:01:53]} 20. Rxa6 {[%clk 0:02:38]}  Qb7 {[%clk 0:01:29]} 21. Rea1 {[%clk 0:02:33]}  Nfxd5 {[%clk 0:01:29]} 22. exd5 {[%clk 0:02:10]}  Rxf4 {[%clk 0:01:28]} 23. Bf3 {[%clk 0:01:48]}  Nc4 {[%clk 0:01:11]} 24. Nxc4 {[%clk 0:01:29]}  Rxc4 {[%clk 0:01:10]} 25. Ra7 {[%clk 0:01:29]}  Qc8 {[%clk 0:01:07]} 26. Be2 {[%clk 0:01:22]}  Bf5 {[%clk 0:01:05]} 27. Qd2 {[%clk 0:01:11]}  Rd4 {[%clk 0:01:03]} 28. Qg5 {[%clk 0:01:06]}  Qd8 {[%clk 0:00:47]} 29. Qg3 {[%clk 0:00:58]}  Qf6 {[%clk 0:00:37]} 30. Bb5 {[%clk 0:00:53]}  Rb8 {[%clk 0:00:34]} 31. Bc6 {[%clk 0:00:49]}  Rdb4 {[%clk 0:00:30]} 32. Ra8 {[%clk 0:00:36]}  Rxb2 {[%clk 0:00:24]} 33. Qe3 {[%clk 0:00:24]}  h5 {[%clk 0:00:18]} 34. Nb5 {[%clk 0:00:18]}  R2xb5 {[%clk 0:00:16]} 35. Bxb5 {[%clk 0:00:18]}  Rxb5 {[%clk 0:00:16]} 36. Qh6 {[%clk 0:00:18]}  Qxa1+ {[%clk 0:00:16]} 37. Rxa1 {[%clk 0:00:17]}  Bxh6 {[%clk 0:00:16]} 38. Ra8+ {[%clk 0:00:18]}  Kg7 {[%clk 0:00:16]} 39. Rd8 {[%clk 0:00:18]}  Rb1+ {[%clk 0:00:16]} 40. Kh2 {[%clk 0:00:19]}  Bf4+ {[%clk 0:00:17]} 41. g3 {[%clk 0:00:19]}  Be5 {[%clk 0:00:17]} 42. Kg2 {[%clk 0:00:20]}  Be4+ {[%clk 0:00:18]} 43. Kh2 {[%clk 0:00:19]}  Bxd5 {[%clk 0:00:18]} 44. Re8 {[%clk 0:00:19]}  Rh1# {[%clk 0:00:18]} 0-1


[Site "https://www.chess.com"]

[Event "Titled Tuesday Blitz March 28 Early 2023"]
[White "Shivakumar, Shawnak"]
[Black "Sielecki, Christof"]
[WhiteFideId "30940192"]
[BlackFideId "4620437"]
[WhiteElo "2089"]
[BlackElo "2443"]
[Result "1-0"]
[Round "05"]
[TimeControl "180+2"]
[Date "2023.03.28"]
[WhiteClock "0:00:26"]
[BlackClock "0:00:15"]

1. e4 {[%clk 0:02:04]}  c5 {[%clk 0:02:57]} 2. Nf3 {[%clk 0:02:04]}  a6 {[%clk 0:02:57]} 3. c3 {[%clk 0:02:03]}  d5 {[%clk 0:02:57]} 4. exd5 {[%clk 0:01:48]}  Qxd5 {[%clk 0:02:57]} 5. d4 {[%clk 0:01:47]}  e6 {[%clk 0:02:58]} 6. Be3 {[%clk 0:01:45]}  Nd7 {[%clk 0:02:57]} 7. c4 {[%clk 0:01:38]}  Qc6 {[%clk 0:02:57]} 8. Nc3 {[%clk 0:01:38]}  Ngf6 {[%clk 0:02:57]} 9. Be2 {[%clk 0:01:34]}  b6 {[%clk 0:02:56]} 10. Ne5 {[%clk 0:01:32]}  Qc7 {[%clk 0:02:55]} 11. Nxd7 {[%clk 0:01:30]}  Bxd7 {[%clk 0:02:52]} 12. d5 {[%clk 0:01:28]}  exd5 {[%clk 0:02:48]} 13. Nxd5 {[%clk 0:01:28]}  Nxd5 {[%clk 0:02:47]} 14. Qxd5 {[%clk 0:01:27]}  Bc6 {[%clk 0:02:41]} 15. Bf4 {[%clk 0:01:27]}  Bxd5 {[%clk 0:02:30]} 16. Bxc7 {[%clk 0:01:26]}  Bxg2 {[%clk 0:02:19]} 17. Rg1 {[%clk 0:01:26]}  Be4 {[%clk 0:02:14]} 18. Rd1 {[%clk 0:01:26]}  f6 {[%clk 0:01:35]} 19. Rg3 {[%clk 0:01:16]}  Bc6 {[%clk 0:01:27]} 20. Bh5+ {[%clk 0:01:00]}  g6 {[%clk 0:01:24]} 21. Bf3 {[%clk 0:01:00]}  Bxf3 {[%clk 0:01:19]} 22. Rxf3 {[%clk 0:01:01]}  Rc8 {[%clk 0:00:34]} 23. Re3+ {[%clk 0:00:51]}  Kf7 {[%clk 0:00:31]} 24. Rd7+ {[%clk 0:00:52]}  Kg8 {[%clk 0:00:31]} 25. Bxb6 {[%clk 0:00:49]}  h5 {[%clk 0:00:29]} 26. a4 {[%clk 0:00:43]}  Rh7 {[%clk 0:00:28]} 27. Rxh7 {[%clk 0:00:41]}  Kxh7 {[%clk 0:00:29]} 28. Re6 {[%clk 0:00:38]}  Kg7 {[%clk 0:00:30]} 29. Ba5 {[%clk 0:00:36]}  Ra8 {[%clk 0:00:29]} 30. Bc3 {[%clk 0:00:36]}  Kh6 {[%clk 0:00:18]} 31. Bxf6 {[%clk 0:00:30]}  Bg7 {[%clk 0:00:18]} 32. a5 {[%clk 0:00:23]}  Bxf6 {[%clk 0:00:15]} 33. Rxf6 {[%clk 0:00:24]}  Rb8 {[%clk 0:00:16]} 34. Rb6 {[%clk 0:00:22]}  Re8+ {[%clk 0:00:15]} 35. Kd2 {[%clk 0:00:21]}  Re4 {[%clk 0:00:16]} 36. Kd3 {[%clk 0:00:20]}  Rd4+ {[%clk 0:00:16]} 37. Kc3 {[%clk 0:00:21]}  Rf4 {[%clk 0:00:16]} 38. Rxa6 {[%clk 0:00:21]}  Rf3+ {[%clk 0:00:17]} 39. Kc2 {[%clk 0:00:20]}  Rxf2+ {[%clk 0:00:18]} 40. Kb3 {[%clk 0:00:21]}  h4 {[%clk 0:00:18]} 41. Ra8 {[%clk 0:00:21]}  Kg5 {[%clk 0:00:17]} 42. a6 {[%clk 0:00:21]}  Rf1 {[%clk 0:00:16]} 43. a7 {[%clk 0:00:22]}  Ra1 {[%clk 0:00:17]} 44. Kc3 {[%clk 0:00:21]}  Kg4 {[%clk 0:00:16]} 45. b4 {[%clk 0:00:22]}  cxb4+ {[%clk 0:00:15]} 46. Kxb4 {[%clk 0:00:22]}  Kh3 {[%clk 0:00:16]} 47. c5 {[%clk 0:00:22]}  g5 {[%clk 0:00:17]} 48. c6 {[%clk 0:00:23]}  g4 {[%clk 0:00:18]} 49. c7 {[%clk 0:00:23]}  Rb1+ {[%clk 0:00:18]} 50. Ka3 {[%clk 0:00:23]}  Ra1+ {[%clk 0:00:19]} 51. Kb2 {[%clk 0:00:24]}  Rg1 {[%clk 0:00:16]} 52. c8=Q {[%clk 0:00:24]}  Rg2+ {[%clk 0:00:17]} 53. Kb3 {[%clk 0:00:24]}  Kxh2 {[%clk 0:00:17]} 54. Rb8 {[%clk 0:00:24]}  Rg3+ {[%clk 0:00:18]} 55. Kc4 {[%clk 0:00:24]}  h3 {[%clk 0:00:19]} 56. a8=Q {[%clk 0:00:24]}  Rg2 {[%clk 0:00:18]} 57. Qc7+ {[%clk 0:00:24]}  g3 {[%clk 0:00:18]} 58. Rb3 {[%clk 0:00:24]}  Rc2+ {[%clk 0:00:17]} 59. Rc3 {[%clk 0:00:24]}  Rxc3+ {[%clk 0:00:17]} 60. Kxc3 {[%clk 0:00:25]}  Kg1 {[%clk 0:00:15]} 61. Qxg3+ {[%clk 0:00:26]}  Kf1 {[%clk 0:00:15]} 62. Qaf3# {[%clk 0:00:26]} 1-0


[Site "https://www.chess.com"]

[Event "Titled Tuesday Blitz March 28 Early 2023"]
[White "Richter, Nils"]
[Black "Gatterer, Florian"]
[WhiteFideId "12990809"]
[BlackFideId "811688"]
[WhiteElo "2381"]
[BlackElo "2221"]
[Result "1-0"]
[Round "05"]
[TimeControl "180+2"]
[Date "2023.03.28"]
[WhiteClock "0:00:19"]
[BlackClock "0:00:01"]

1. b3 {[%clk 0:03:00]}  e5 {[%clk 0:02:59]} 2. Bb2 {[%clk 0:03:01]}  Nc6 {[%clk 0:02:59]} 3. e3 {[%clk 0:03:01]}  Nf6 {[%clk 0:02:55]} 4. c4 {[%clk 0:03:01]}  d5 {[%clk 0:02:54]} 5. cxd5 {[%clk 0:03:01]}  Nxd5 {[%clk 0:02:54]} 6. Nf3 {[%clk 0:03:00]}  Bd6 {[%clk 0:02:53]} 7. d3 {[%clk 0:02:58]}  O-O {[%clk 0:02:51]} 8. Be2 {[%clk 0:02:58]}  Qe7 {[%clk 0:02:47]} 9. O-O {[%clk 0:02:57]}  a5 {[%clk 0:02:46]} 10. a3 {[%clk 0:02:56]}  Be6 {[%clk 0:02:43]} 11. Nbd2 {[%clk 0:02:56]}  Kh8 {[%clk 0:02:43]} 12. Qc2 {[%clk 0:02:54]}  f6 {[%clk 0:02:39]} 13. Ne4 {[%clk 0:02:47]}  Rfc8 {[%clk 0:02:30]} 14. Kh1 {[%clk 0:02:47]}  Bf7 {[%clk 0:02:29]} 15. g4 {[%clk 0:02:43]}  Nd8 {[%clk 0:02:23]} 16. Rg1 {[%clk 0:02:42]}  c5 {[%clk 0:02:13]} 17. Rg3 {[%clk 0:02:32]}  b6 {[%clk 0:02:13]} 18. Rag1 {[%clk 0:02:31]}  a4 {[%clk 0:02:10]} 19. bxa4 {[%clk 0:02:30]}  Be8 {[%clk 0:02:05]} 20. Nc3 {[%clk 0:02:16]}  Nxc3 {[%clk 0:02:00]} 21. Qxc3 {[%clk 0:02:17]}  Bc6 {[%clk 0:01:49]} 22. e4 {[%clk 0:02:13]}  Ne6 {[%clk 0:01:38]} 23. g5 {[%clk 0:02:10]}  Nf4 {[%clk 0:01:27]} 24. Bd1 {[%clk 0:01:59]}  Bxa4 {[%clk 0:01:00]} 25. Bxa4 {[%clk 0:01:53]}  Rxa4 {[%clk 0:00:58]} 26. gxf6 {[%clk 0:01:53]}  gxf6 {[%clk 0:00:54]} 27. Qb3 {[%clk 0:01:42]}  Raa8 {[%clk 0:00:48]} 28. Nh4 {[%clk 0:01:34]}  Qe6 {[%clk 0:00:15]} 29. Qxe6 {[%clk 0:01:13]}  Nxe6 {[%clk 0:00:15]} 30. Nf5 {[%clk 0:01:14]}  Rd8 {[%clk 0:00:11]} 31. h4 {[%clk 0:01:10]}  Bc7 {[%clk 0:00:08]} 32. h5 {[%clk 0:01:01]}  Rg8 {[%clk 0:00:08]} 33. Rxg8+ {[%clk 0:00:55]}  Rxg8 {[%clk 0:00:07]} 34. Rxg8+ {[%clk 0:00:56]}  Kxg8 {[%clk 0:00:07]} 35. Ne7+ {[%clk 0:00:57]}  Kf7 {[%clk 0:00:07]} 36. Nd5 {[%clk 0:00:58]}  Bd8 {[%clk 0:00:07]} 37. Kg2 {[%clk 0:00:56]}  b5 {[%clk 0:00:06]} 38. Kh3 {[%clk 0:00:55]}  Be7 {[%clk 0:00:06]} 39. Kg4 {[%clk 0:00:55]}  b4 {[%clk 0:00:07]} 40. a4 {[%clk 0:00:54]}  Nd8 {[%clk 0:00:04]} 41. a5 {[%clk 0:00:51]}  Nc6 {[%clk 0:00:04]} 42. a6 {[%clk 0:00:51]}  Bd8 {[%clk 0:00:04]} 43. f4 {[%clk 0:00:47]}  exf4 {[%clk 0:00:03]} 44. Kxf4 {[%clk 0:00:46]}  Ke6 {[%clk 0:00:03]} 45. h6 {[%clk 0:00:44]}  b3 {[%clk 0:00:04]} 46. Ke3 {[%clk 0:00:41]}  Be7 {[%clk 0:00:04]} 47. Kd2 {[%clk 0:00:37]}  f5 {[%clk 0:00:04]} 48. Kc3 {[%clk 0:00:34]}  fxe4 {[%clk 0:00:04]} 49. dxe4 {[%clk 0:00:34]}  Bd6 {[%clk 0:00:04]} 50. Kxb3 {[%clk 0:00:32]}  Be5 {[%clk 0:00:05]} 51. Ba3 {[%clk 0:00:26]}  Bd4 {[%clk 0:00:05]} 52. Kc4 {[%clk 0:00:23]}  Ke5 {[%clk 0:00:05]} 53. Bxc5 {[%clk 0:00:23]}  Bxc5 {[%clk 0:00:05]} 54. Kxc5 {[%clk 0:00:23]}  Na7 {[%clk 0:00:05]} 55. Kb6 {[%clk 0:00:22]}  Nc8+ {[%clk 0:00:05]} 56. Kc7 {[%clk 0:00:22]}  Na7 {[%clk 0:00:05]} 57. Kb7 {[%clk 0:00:22]}  Nb5 {[%clk 0:00:05]} 58. Nc3 {[%clk 0:00:21]}  Nd6+ {[%clk 0:00:01]} 59. Kc7 {[%clk 0:00:19]}  Ne8+ {[%clk 0:00:01]} 60. Kc6 {[%clk 0:00:19]} 1-0


[Site "https://www.chess.com"]

[Event "Titled Tuesday Blitz March 28 Early 2023"]
[White "Priyanka Nutakki"]
[Black "Vaglio Munoz, Jaime"]
[WhiteFideId "25049615"]
[BlackFideId "6500145"]
[WhiteElo "2256"]
[BlackElo "2199"]
[Result "0-1"]
[Round "05"]
[TimeControl "180+2"]
[Date "2023.03.28"]
[WhiteClock "0:00:17"]
[BlackClock "0:01:23"]

1. Nf3 {[%clk 0:03:00]}  e6 {[%clk 0:02:59]} 2. b3 {[%clk 0:03:00]}  b5 {[%clk 0:02:58]} 3. Bb2 {[%clk 0:03:00]}  a6 {[%clk 0:02:58]} 4. e3 {[%clk 0:02:59]}  Bb7 {[%clk 0:02:59]} 5. g3 {[%clk 0:02:59]}  Nf6 {[%clk 0:02:59]} 6. Bg2 {[%clk 0:02:59]}  Be7 {[%clk 0:02:59]} 7. O-O {[%clk 0:03:00]}  O-O {[%clk 0:02:59]} 8. d3 {[%clk 0:03:00]}  d6 {[%clk 0:02:59]} 9. Nbd2 {[%clk 0:03:00]}  Nbd7 {[%clk 0:02:59]} 10. a3 {[%clk 0:03:00]}  c5 {[%clk 0:02:59]} 11. e4 {[%clk 0:03:01]}  e5 {[%clk 0:02:58]} 12. Qe2 {[%clk 0:03:01]}  Nb8 {[%clk 0:02:56]} 13. Nh4 {[%clk 0:03:01]}  g6 {[%clk 0:02:56]} 14. f4 {[%clk 0:02:59]}  Nfd7 {[%clk 0:02:54]} 15. Nhf3 {[%clk 0:02:48]}  Bf6 {[%clk 0:02:52]} 16. a4 {[%clk 0:02:42]}  Nc6 {[%clk 0:02:48]} 17. f5 {[%clk 0:02:33]}  Bg7 {[%clk 0:02:43]} 18. g4 {[%clk 0:02:10]}  Nd4 {[%clk 0:02:41]} 19. Qd1 {[%clk 0:02:02]}  Bh6 {[%clk 0:02:36]} 20. Bc1 {[%clk 0:01:58]}  Bf4 {[%clk 0:02:30]} 21. Kh1 {[%clk 0:01:51]}  Nf6 {[%clk 0:02:29]} 22. h3 {[%clk 0:01:48]}  Kg7 {[%clk 0:02:27]} 23. Nb1 {[%clk 0:01:42]}  Bxc1 {[%clk 0:02:20]} 24. Qxc1 {[%clk 0:01:43]}  Ng8 {[%clk 0:02:16]} 25. Nc3 {[%clk 0:01:38]}  f6 {[%clk 0:02:15]} 26. axb5 {[%clk 0:01:33]}  axb5 {[%clk 0:02:14]} 27. Nxd4 {[%clk 0:01:28]}  cxd4 {[%clk 0:02:11]} 28. Nxb5 {[%clk 0:01:25]}  d5 {[%clk 0:02:06]} 29. Rxa8 {[%clk 0:01:19]}  Bxa8 {[%clk 0:02:02]} 30. Qe1 {[%clk 0:01:10]}  g5 {[%clk 0:01:55]} 31. Qe2 {[%clk 0:01:00]}  Ne7 {[%clk 0:01:53]} 32. Ra1 {[%clk 0:00:59]}  Bc6 {[%clk 0:01:52]} 33. Na7 {[%clk 0:00:45]}  Bb7 {[%clk 0:01:50]} 34. Nb5 {[%clk 0:00:39]}  Rh8 {[%clk 0:01:49]} 35. Ra7 {[%clk 0:00:36]}  Qb6 {[%clk 0:01:47]} 36. exd5 {[%clk 0:00:20]}  Qxb5 {[%clk 0:01:36]} 37. d6 {[%clk 0:00:20]}  Nc6 {[%clk 0:01:29]} 38. Qe4 {[%clk 0:00:17]}  Nxa7 {[%clk 0:01:25]} 39. Qxb7+ {[%clk 0:00:16]}  Qxb7 {[%clk 0:01:25]} 40. Bxb7 {[%clk 0:00:17]}  Rd8 {[%clk 0:01:23]} 0-1


[Site "https://www.chess.com"]

[Event "Titled Tuesday Blitz March 28 Early 2023"]
[White "Castellanos Gomez, Alejandro"]
[Black "Jia, Haoxiang"]
[WhiteFideId "22284141"]
[BlackFideId "8602999"]
[WhiteElo "2158"]
[BlackElo "2591"]
[Result "0-1"]
[Round "05"]
[TimeControl "180+2"]
[Date "2023.03.28"]
[WhiteClock "0:00:01"]
[BlackClock "0:00:49"]

1. d4 {[%clk 0:03:00]}  Nf6 {[%clk 0:02:55]} 2. Bf4 {[%clk 0:03:01]}  g6 {[%clk 0:02:55]} 3. Nc3 {[%clk 0:03:01]}  Bg7 {[%clk 0:02:55]} 4. e4 {[%clk 0:03:01]}  d6 {[%clk 0:02:55]} 5. Qd2 {[%clk 0:03:01]}  Nc6 {[%clk 0:02:51]} 6. O-O-O {[%clk 0:02:53]}  O-O {[%clk 0:02:50]} 7. Nge2 {[%clk 0:02:44]}  a6 {[%clk 0:02:47]} 8. f3 {[%clk 0:02:41]}  b5 {[%clk 0:02:48]} 9. d5 {[%clk 0:02:36]}  Ne5 {[%clk 0:02:45]} 10. Nd4 {[%clk 0:02:36]}  Bd7 {[%clk 0:02:40]} 11. h4 {[%clk 0:02:28]}  c5 {[%clk 0:02:39]} 12. dxc6 {[%clk 0:02:28]}  Nxc6 {[%clk 0:02:39]} 13. Nxc6 {[%clk 0:02:20]}  Bxc6 {[%clk 0:02:40]} 14. h5 {[%clk 0:02:20]}  Nxh5 {[%clk 0:02:38]} 15. Bh6 {[%clk 0:02:19]}  b4 {[%clk 0:02:02]} 16. Bxg7 {[%clk 0:02:07]}  Kxg7 {[%clk 0:01:59]} 17. Ne2 {[%clk 0:01:32]}  Qa5 {[%clk 0:01:57]} 18. Kb1 {[%clk 0:01:21]}  Nf6 {[%clk 0:01:29]} 19. Nd4 {[%clk 0:01:13]}  Bd7 {[%clk 0:01:26]} 20. Qh6+ {[%clk 0:01:05]}  Kg8 {[%clk 0:01:23]} 21. g4 {[%clk 0:00:48]}  Qe5 {[%clk 0:01:17]} 22. Rg1 {[%clk 0:00:28]}  Rfc8 {[%clk 0:01:12]} 23. Nf5 {[%clk 0:00:21]}  Bxf5 {[%clk 0:01:09]} 24. gxf5 {[%clk 0:00:20]}  Rxc2 {[%clk 0:01:00]} 25. Kxc2 {[%clk 0:00:18]}  Qc5+ {[%clk 0:01:00]} 26. Kb1 {[%clk 0:00:17]}  Qxg1 {[%clk 0:01:00]} 27. fxg6 {[%clk 0:00:15]}  hxg6 {[%clk 0:00:58]} 28. Qf4 {[%clk 0:00:11]}  Rc8 {[%clk 0:00:55]} 29. e5 {[%clk 0:00:08]}  dxe5 {[%clk 0:00:56]} 30. Qxe5 {[%clk 0:00:09]}  Qf2 {[%clk 0:00:56]} 31. Ka1 {[%clk 0:00:06]}  Qxf3 {[%clk 0:00:55]} 32. Rb1 {[%clk 0:00:05]}  Qe4 {[%clk 0:00:50]} 33. Qg5 {[%clk 0:00:03]}  b3 {[%clk 0:00:50]} 34. Bxa6 {[%clk 0:00:02]}  bxa2 {[%clk 0:00:49]} 35. Re1 {[%clk 0:00:01]}  Qxe1+ {[%clk 0:00:49]} 0-1


[Site "https://www.chess.com"]